[Event "7. Arber-Senioren-Cup 2019"]
[Site "Bodenmais"]
[Date "2019.08.02"]
[Round "7.3"]
[White "Greul, Hans"]
[Black "Pribyl, Josef"]
[Result "1/2-1/2"]
[ECO "A50"]
[WhiteElo "2009"]
[BlackElo "2234"]
[Annotator "ChessBase"]
[PlyCount "68"]
[EventDate "2019.07.27"]
[EventType "swiss"]
[EventCountry "GER"]
[SourceTitle "playchess.com"]
[Source "ChessBase"]
[SourceQuality "1"]
[TimeControl "60/7800+30:0"]

1. d4 {[%emt 0:00:00]} Nf6 {[%emt 0:00:00]} 2. c4 {[%emt 0:00:00]} g6 {[%emt 0:00:00]} 3. Bf4 {[%emt 0:01:19]} Bg7 {[%emt 0:00:00]} 4. e3 {[%emt 0:00:10]} c5 {[%emt 0:00:29]} 5. Nc3 {[%emt 0:01:21]} cxd4 {[%emt 0:00:22]} 6. exd4 {[%emt 0:00:13]} O-O {[%emt 0:00:32]} 7. Nf3 {[%emt 0:01:58]} d5 {[%emt 0:00:02]} 8. Qb3 {[%emt 0:02:19]} dxc4 {[%emt 0:01:40]} 9. Bxc4 {[%emt 0:00:10]} Nc6 {[%emt 0:00:02]} 10. Qd1 {[%emt 0:10:13]} Na5 {[%emt 0:16:15]} 11. Be2 {[%emt 0:02:34]} Be6 {[%emt 0:00:26]} 12. O-O {[%emt 0:01:21]} Nd5 {[%emt 0:00:33]} 13. Nxd5 {[%emt 0:06:16]} Bxd5 {[%emt 0:00:03]} 14. Qd2 {[%emt 0:02:28]} Rc8 {[%emt 0:02:08]} 15. Rfd1 {[%emt 0:02:30]} Qb6 {[%emt 0:02:48]} 16. b3 {[%emt 0:03:39]} Rfd8 {[%emt 0:00:19]} 17. Be3 {[%emt 0:07:56]} Nc6 {[%emt 0:02:07]} 18. Rac1 {[%emt 0:00:50]} Nb4 {[%emt 0:03:51]} 19. Ne5 {[%emt 0:02:41]} Rxc1 {[%emt 0:02:23]} 20. Rxc1 {[%emt 0:00:59]} Nc6 {[%emt 0:08:23]} 21. Qc3 {[%emt 0:03:42]} e6 {[%emt 0:06:44]} 22. Nxc6 {[%emt 0:02:38]} bxc6 {[%emt 0:01:19]} 23. f3 {[%emt 0:03:27]} Rb8 {[%emt 0:01:59]} 24. Bc4 {[%emt 0:05:34]} h5 {[%emt 0:05:43]} 25. Bxd5 {[%emt 0:00:27]} cxd5 {[%emt 0:00:01]} 26. Qc5 {[%emt 0:01:44]} Qa6 {[%emt 0:00:49]} 27. Qc7 {[%emt 0:04:34]} Rf8 {[%emt 0:03:18]} 28. Rc2 {[%emt 0:06:20]} Qd3 {[%emt 0:09:26]} 29. Qc3 Qxc3 30. Rxc3 a5 31. Rc5 a4 32. b4 Rb8 33. a3 Bf8 34. Rc3 Bd6 1/2-1/2

[Event "7. Arber-Senioren-Cup 2019"]
[Site "Bodenmais"]
[Date "2019.08.02"]
[Round "7.4"]
[White "Lorenc, Tomas"]
[Black "Godoj, Veit"]
[Result "1-0"]
[ECO "A13"]
[WhiteElo "2158"]
[BlackElo "1995"]
[Annotator "NA"]
[PlyCount "91"]
[EventDate "2019.07.27"]
[EventType "swiss"]
[EventCountry "GER"]
[SourceTitle "playchess.com"]
[Source "ChessBase"]
[SourceQuality "1"]
[TimeControl "60/7800+30:0"]

1. c4 {[%emt 0:02:20]} e6 {[%emt 0:00:00]} 2. g3 {[%emt 0:00:15]} d5 {[%emt 0:00:16]} 3. Bg2 {[%emt 0:00:19]} f5 {[%emt 0:00:22]} 4. Nf3 {[%emt 0:03:14]} c6 {[%emt 0:00:09]} 5. O-O {[%emt 0:04:30]} Bd6 {[%emt 0:00:10]} 6. d3 {[%emt 0:04:22]} Nf6 {[%emt 0:00:30]} 7. Nc3 {[%emt 0:01:59]} e5 {[%emt 0:17:30]} 8. cxd5 {[%emt 0:08:05]} Nxd5 {[%emt 0:01:12]} 9. Nxd5 {[%emt 0:07:15]} cxd5 {[%emt 0:00:01]} 10. Qb3 {[%emt 0:00:34]} d4 {[%emt 0:03:13]} 11. Bg5 {[%emt 0:07:51]} Qb6 {[%emt 0:07:01]} 12. Qd5 {[%emt 0:14:04]} Qc6 {[%emt 0:00:55]} 13. Rfc1 {[%emt 0:05:05]} Qxd5 {[%emt 0:01:36]} 14. Rxc8+ {[%emt 0:00:02]} Kf7 {[%emt 0:00:00]} 15. Rxh8 {[%emt 0:00:11]} Qb5 {[%emt 0:19:06]} 16. Nh4 {[%emt 0:04:24]} Bf8 {[%emt 0:16:50]} 17. Nxf5 {[%emt 0:03:04]} h6 {[%emt 0:11:42]} 18. Bc1 {[%emt 0:21:20]} a5 {[%emt 0:00:49]} 19. Be4 {[%emt 0:05:43]} Ra6 {[%emt 0:00:56]} 20. f4 {[%emt 0:01:26]} Nd7 {[%emt 0:17:49]} 21. fxe5 {[%emt 0:05:30]} Nxe5 {[%emt 0:01:13]} 22. Nxd4 {[%emt 0:03:39]} Qd7 {[%emt 0:08:19]} 23. Nf5 {[%emt 0:11:27]} Rf6 {[%emt 0:10:38]} 24. Bd2 {[%emt 0:04:35]} Ng6 {[%emt 0:16:52]} 25. Nxh6+ {[%emt 0:00:44]} Ke6 {[%emt 0:00:55]} 26. Rxf8 {[%emt 0:15:21]} Nxf8 {[%emt 0:00:13]} 27. Ng4 {[%emt 0:00:43]} Qd4+ {[%emt 0:00:12]} 28. Be3 {[%emt 0:01:01]} Qxb2 {[%emt 0:00:02]} 29. Re1 {[%emt 0:00:26]} Rf7 {[%emt 0:00:57]} 30. d4 {[%emt 0:00:37]} Qc3 {[%emt 0:00:17]} 31. Rc1 {[%emt 0:00:35]} Qa3 {[%emt 0:02:59]} 32. d5+ {[%emt 0:00:22]} Kd6 {[%emt 0:00:39]} 33. Bc5+ {[%emt 0:03:31]} Qxc5+ {[%emt 0:00:02]} 34. Rxc5 {[%emt 0:00:06]} Kxc5 {[%emt 0:00:01]} 35. Ne5 {[%emt 0:00:15]} Re7 {[%emt 0:00:35]} 36. Nd3+ {[%emt 0:00:06]} Kd4 {[%emt 0:00:33]} 37. Bf3 {[%emt 0:01:07]} b5 {[%emt 0:00:20]} 38. d6 {[%emt 0:00:46]} Rf7 {[%emt 0:02:03]} 39. Bc6 {[%emt 0:01:24]} b4 {[%emt 0:00:01]} 40. Be8 {[%emt 0:00:50]} Rf6 {[%emt 0:01:24]} 41. d7 {[%emt 0:00:41]} Ne6 42. Nf4 Nd8 43. e3+ Kxe3 44. Nd5+ Kd3 45. Nxf6 gxf6 46. h4 1-0

[Event "7. Arber-Senioren-Cup 2019"]
[Site "Bodenmais"]
[Date "2019.08.02"]
[Round "7.5"]
[White "Steinbach, Peter"]
[Black "Korte, Markus"]
[Result "1-0"]
[ECO "C55"]
[WhiteElo "1958"]
[BlackElo "2028"]
[Annotator "NA"]
[PlyCount "27"]
[EventDate "2019.07.27"]
[EventType "swiss"]
[EventCountry "GER"]
[SourceTitle "playchess.com"]
[Source "ChessBase"]
[SourceQuality "1"]
[TimeControl "60/7800+30:0"]

1. e4 {[%emt 0:00:03]} e5 {[%emt 0:00:00]} 2. Bc4 {[%emt 0:00:39]} Nf6 {[%emt 0:00:02]} 3. d4 {[%emt 0:00:08]} exd4 {[%emt 0:06:02]} 4. Nf3 {[%emt 0:00:19]} Nc6 {[%emt 0:02:36]} 5. O-O {[%emt 0:05:27]} Bc5 {[%emt 0:03:55]} 6. e5 {[%emt 0:00:34]} d5 {[%emt 0:01:12]} 7. exf6 {[%emt 0:11:06]} dxc4 {[%emt 0:01:01]} 8. Re1+ {[%emt 0:02:10]} Be6 {[%emt 0:00:07]} 9. Ng5 {[%emt 0:02:22]} Qxf6 {[%emt 0:02:34]} 10. Nxe6 {[%emt 0:00:07]} fxe6 {[%emt 0:00:19]} 11. Qh5+ {[%emt 0:00:07]} Qf7 {[%emt 0:05:06]} 12. Qxc5 {[%emt 0:02:48]} O-O-O {[%emt 0:01:29]} 13. Qxc4 {[%emt 0:00:39]} Rhf8 {[%emt 0:00:33]} 14. Qxe6+ {[%emt 0:00:36]} 1-0

[Event "7. Arber-Senioren-Cup 2019"]
[Site "Bodenmais"]
[Date "2019.08.02"]
[Round "7.6"]
[White "Neubauer, Jaroslaus"]
[Black "Hamlack, Heinz"]
[Result "1/2-1/2"]
[ECO "B11"]
[WhiteElo "2014"]
[BlackElo "1986"]
[Annotator "NA"]
[PlyCount "67"]
[EventDate "2019.07.27"]
[EventType "swiss"]
[EventCountry "GER"]
[SourceTitle "playchess.com"]
[Source "ChessBase"]
[SourceQuality "1"]
[TimeControl "60/7800+30:0"]

1. e4 {[%emt 0:00:00]} c6 {[%emt 0:00:00]} 2. Nf3 {[%emt 0:00:00]} d5 {[%emt 0:00:00]} 3. Nc3 {[%emt 0:00:19]} Bg4 {[%emt 0:00:46]} 4. h3 {[%emt 0:00:12]} Bxf3 {[%emt 0:00:14]} 5. Qxf3 {[%emt 0:00:16]} e6 {[%emt 0:00:51]} 6. exd5 {[%emt 0:02:41]} cxd5 {[%emt 0:01:20]} 7. d4 {[%emt 0:00:52]} Nc6 {[%emt 0:01:19]} 8. Bb5 {[%emt 0:01:57]} Qb6 {[%emt 0:03:47]} 9. Qe3 {[%emt 0:14:23]} Bb4 {[%emt 0:00:20]} 10. O-O {[%emt 0:00:32]} Bxc3 {[%emt 0:00:07]} 11. Bxc6+ {[%emt 0:00:12]} Qxc6 {[%emt 0:00:03]} 12. bxc3 Rc8 {[%emt 0:00:20]} 13. Bd2 {[%emt 0:00:37]} Nf6 {[%emt 0:00:06]} 14. f3 {[%emt 0:01:50]} O-O {[%emt 0:00:26]} 15. a4 {[%emt 0:00:40]} Ne8 {[%emt 0:00:40]} 16. Rfb1 {[%emt 0:13:23]} Nd6 {[%emt 0:01:05]} 17. Qe2 {[%emt 0:00:47]} Nc4 {[%emt 0:00:43]} 18. Rb3 {[%emt 0:00:17]} b6 {[%emt 0:00:21]} 19. Be1 {[%emt 0:05:29]} Rfe8 {[%emt 0:01:45]} 20. f4 {[%emt 0:00:19]} a6 {[%emt 0:05:14]} 21. Qf3 {[%emt 0:03:02]} Ra8 {[%emt 0:02:15]} 22. h4 {[%emt 0:01:54]} b5 {[%emt 0:01:22]} 23. axb5 {[%emt 0:01:29]} axb5 {[%emt 0:00:06]} 24. Rab1 {[%emt 0:01:49]} Nd6 {[%emt 0:06:34]} 25. h5 {[%emt 0:00:34]} Ra2 {[%emt 0:01:11]} 26. h6 {[%emt 0:03:25]} g6 {[%emt 0:10:52]} 27. g4 {[%emt 0:09:38]} Rxc2 {[%emt 0:11:36]} 28. Qe3 {[%emt 0:05:35]} Nc4 {[%emt 0:00:19]} 29. Qd3 {[%emt 0:00:10]} Ra2 {[%emt 0:00:28]} 30. Rxb5 {[%emt 0:00:14]} Qd6 {[%emt 0:02:11]} 31. Qg3 {[%emt 0:04:24]} Re2 32. Rb7 {[%emt 0:18:20]} Re4 {[%emt 0:11:43]} 33. Kh1 {[%emt 0:06:09]} Re3 {[%emt 0:21:04]} 34. Qh2 1/2-1/2

[Event "7. Arber-Senioren-Cup 2019"]
[Site "Bodenmais"]
[Date "2019.08.02"]
[Round "7.7"]
[White "Fleuch, Hans-Juergen"]
[Black "Kurka, Dieter"]
[Result "0-1"]
[ECO "B22"]
[WhiteElo "1951"]
[BlackElo "2006"]
[Annotator "NA"]
[PlyCount "30"]
[EventDate "2019.07.27"]
[EventType "swiss"]
[EventCountry "GER"]
[SourceTitle "playchess.com"]
[Source "ChessBase"]
[SourceQuality "1"]
[TimeControl "60/7800+30:0"]

1. e4 {[%emt 0:00:00]} c5 {[%emt 0:00:00]} 2. c3 {[%emt 0:00:00]} d5 {[%emt 0:00:19]} 3. exd5 {[%emt 0:01:05]} Qxd5 {[%emt 0:00:10]} 4. d4 {[%emt 0:00:18]} Nf6 {[%emt 0:02:31]} 5. Nf3 {[%emt 0:03:20]} Bg4 {[%emt 0:04:37]} 6. Nbd2 {[%emt 0:06:18]} cxd4 {[%emt 0:05:20]} 7. Bc4 {[%emt 0:00:22]} Qf5 {[%emt 0:20:04]} 8. Qb3 {[%emt 0:03:02]} Bxf3 {[%emt 0:00:09]} 9. Bxf7+ {[%emt 0:00:37]} Kd8 {[%emt 0:00:06]} 10. Nxf3 {[%emt 0:06:09]} Qe4+ {[%emt 0:00:38]} 11. Kf1 {[%emt 0:00:19]} Qd3+ {[%emt 0:32:34]} 12. Kg1 {[%emt 0:02:18]} Nbd7 {[%emt 0:02:21]} 13. Bc4 {[%emt 0:23:09]} Qe4 {[%emt 0:03:07]} 14. Bd3 {[%emt 0:11:18]} Qxd3 {[%emt 0:02:27]} 15. Ng5 {[%emt 0:00:13]} Qe4 0-1

[Event "7. Arber-Senioren-Cup 2019"]
[Site "Bodenmais"]
[Date "2019.08.02"]
[Round "7.8"]
[White "Puehn, Georg"]
[Black "Busch, Joerg"]
[Result "1/2-1/2"]
[ECO "B01"]
[WhiteElo "1990"]
[BlackElo "1851"]
[Annotator "NA"]
[PlyCount "56"]
[EventDate "2019.07.27"]
[EventType "swiss"]
[EventCountry "GER"]
[SourceTitle "playchess.com"]
[Source "ChessBase"]
[SourceQuality "1"]
[TimeControl "60/7800+30:0"]

1. e4 {[%emt 0:00:00]} d5 {[%emt 0:00:00]} 2. exd5 {[%emt 0:00:00]} Qxd5 {[%emt 0:00:00]} 3. Nf3 {[%emt 0:00:04]} Bg4 {[%emt 0:00:03]} 4. Be2 {[%emt 0:00:09]} Nf6 {[%emt 0:00:49]} 5. h3 {[%emt 0:00:27]} Bh5 {[%emt 0:01:07]} 6. d4 {[%emt 0:00:41]} c6 {[%emt 0:02:46]} 7. c4 {[%emt 0:02:27]} Qd6 {[%emt 0:00:29]} 8. Nc3 {[%emt 0:05:13]} e6 {[%emt 0:00:36]} 9. Bg5 {[%emt 0:03:44]} Nbd7 {[%emt 0:01:38]} 10. Qd2 {[%emt 0:02:58]} Qc7 {[%emt 0:09:05]} 11. O-O {[%emt 0:08:32]} Bb4 {[%emt 0:05:08]} 12. Qe3 {[%emt 0:13:39]} O-O {[%emt 0:02:54]} 13. a3 {[%emt 0:06:05]} Bd6 {[%emt 0:03:24]} 14. g4 {[%emt 0:04:07]} Bg6 {[%emt 0:01:07]} 15. c5 {[%emt 0:09:09]} Be7 {[%emt 0:01:26]} 16. b4 {[%emt 0:09:41]} a6 {[%emt 0:02:04]} 17. a4 {[%emt 0:01:33]} h6 {[%emt 0:02:22]} 18. Bh4 {[%emt 0:02:43]} Qd8 {[%emt 0:02:58]} 19. Bg3 {[%emt 0:03:45]} Nd5 {[%emt 0:07:01]} 20. Nxd5 {[%emt 0:00:10]} exd5 {[%emt 0:05:15]} 21. Bd3 {[%emt 0:01:18]} Bxd3 {[%emt 0:03:19]} 22. Qxd3 {[%emt 0:00:10]} Nf6 {[%emt 0:01:23]} 23. Nd2 {[%emt 0:04:28]} Nh7 {[%emt 0:02:13]} 24. f4 {[%emt 0:03:53]} Bh4 {[%emt 0:03:59]} 25. Kg2 {[%emt 0:01:56]} Re8 {[%emt 0:02:12]} 26. Bxh4 {[%emt 0:02:04]} Qxh4 {[%emt 0:00:09]} 27. Nf3 {[%emt 0:00:20]} Qd8 {[%emt 0:04:19]} 28. Rae1 {[%emt 0:02:12]} Qc7 {[%emt 0:02:47]} 1/2-1/2

[Event "7. Arber-Senioren-Cup 2019"]
[Site "Bodenmais"]
[Date "2019.08.02"]
[Round "7.9"]
[White "Oberhofer, Max"]
[Black "Waltenberger, Udo"]
[Result "1-0"]
[ECO "A37"]
[WhiteElo "2187"]
[BlackElo "1986"]
[Annotator "ChessBase"]
[PlyCount "111"]
[EventDate "2019.07.27"]
[EventType "swiss"]
[EventCountry "GER"]
[SourceTitle "playchess.com"]
[Source "ChessBase"]
[SourceQuality "1"]
[TimeControl "60/7800+30:0"]

1. Nf3 c5 2. g3 {[%emt 0:00:58]} g6 {[%emt 0:01:11]} 3. c4 {[%emt 0:00:25]} Bg7 {[%emt 0:00:07]} 4. Bg2 {[%emt 0:00:04]} Nc6 {[%emt 0:00:23]} 5. Nc3 {[%emt 0:00:22]} e5 {[%emt 0:00:05]} 6. d3 {[%emt 0:00:29]} Nge7 {[%emt 0:00:20]} 7. O-O {[%emt 0:00:24]} d6 {[%emt 0:01:03]} 8. a3 {[%emt 0:00:16]} Rb8 {[%emt 0:00:53]} 9. Rb1 {[%emt 0:00:33]} a5 {[%emt 0:00:05]} 10. Bg5 {[%emt 0:07:00]} f6 {[%emt 0:00:40]} 11. Bd2 {[%emt 0:00:06]} Be6 {[%emt 0:00:59]} 12. Nb5 {[%emt 0:03:25]} O-O {[%emt 0:07:34]} 13. b4 {[%emt 0:00:33]} axb4 {[%emt 0:02:13]} 14. axb4 {[%emt 0:00:10]} Nxb4 {[%emt 0:02:01]} 15. Bxb4 {[%emt 0:00:54]} cxb4 {[%emt 0:00:04]} 16. Rxb4 {[%emt 0:00:22]} Nc6 {[%emt 0:03:34]} 17. Rb1 {[%emt 0:02:26]} d5 {[%emt 0:01:04]} 18. cxd5 {[%emt 0:00:33]} Bxd5 {[%emt 0:00:02]} 19. Nc3 {[%emt 0:01:46]} Bf7 {[%emt 0:04:31]} 20. Qa4 {[%emt 0:07:03]} Qa5 {[%emt 0:08:59]} 21. Qxa5 {[%emt 0:02:32]} Nxa5 {[%emt 0:00:04]} 22. Rb5 {[%emt 0:00:20]} Rfc8 {[%emt 0:10:09]} 23. Ne4 {[%emt 0:00:19]} Nc6 {[%emt 0:12:54]} 24. Nd6 {[%emt 0:02:01]} Rc7 {[%emt 0:00:23]} 25. Rfb1 {[%emt 0:05:20]} Nd8 {[%emt 0:03:45]} 26. Nd2 {[%emt 0:07:00]} Bf8 {[%emt 0:03:34]} 27. N2c4 {[%emt 0:01:51]} Bxc4 {[%emt 0:01:51]} 28. Nxc4 {[%emt 0:00:11]} Bc5 {[%emt 0:08:01]} 29. Na5 {[%emt 0:07:38]} Kf8 {[%emt 0:03:29]} 30. Bxb7 {[%emt 0:03:00]} Nxb7 {[%emt 0:04:55]} 31. Rxb7 {[%emt 0:02:16]} Rcxb7 {[%emt 0:00:18]} 32. Rxb7 {[%emt 0:00:06]} Rxb7 {[%emt 0:01:11]} 33. Nxb7 {[%emt 0:00:05]} Bb6 {[%emt 0:00:15]} 34. Nd6 {[%emt 0:00:10]} Kg7 35. e3 {[%emt 0:01:52]} h5 {[%emt 0:06:27]} 36. h3 {[%emt 0:01:22]} g5 {[%emt 0:01:08]} 37. g4 {[%emt 0:00:15]} hxg4 {[%emt 0:01:23]} 38. hxg4 {[%emt 0:00:08]} Bc5 {[%emt 0:01:15]} 39. Nf5+ {[%emt 0:01:25]} Kf7 {[%emt 0:00:04]} 40. Kf1 {[%emt 0:00:58]} Ke6 {[%emt 0:00:37]} 41. d4 {[%emt 0:00:34]} exd4 {[%emt 0:01:17]} 42. exd4 {[%emt 0:00:33]} Bb6 {[%emt 0:01:44]} 43. Ke2 {[%emt 0:00:08]} Kd5 {[%emt 0:04:28]} 44. Kd3 {[%emt 0:02:35]} Bd8 {[%emt 0:02:56]} 45. Ne3+ {[%emt 0:00:06]} Ke6 {[%emt 0:01:10]} 46. Ke4 {[%emt 0:00:11]} Kd6 {[%emt 0:00:12]} 47. Kf5 {[%emt 0:01:17]} Be7 {[%emt 0:00:17]} 48. Nc4+ {[%emt 0:03:14]} Kd5 {[%emt 0:00:57]} 49. Nd2 {[%emt 0:00:06]} Bb4 {[%emt 0:03:39]} 50. Ne4 {[%emt 0:00:23]} Be1 {[%emt 0:00:12]} 51. Nxf6+ {[%emt 0:03:33]} Kxd4 {[%emt 0:00:30]} 52. Ne4 {[%emt 0:00:03]} Kd3 {[%emt 0:03:09]} 53. f3 {[%emt 0:00:14]} Ke3 {[%emt 0:03:55]} 54. Nxg5 {[%emt 0:00:12]} Bh4 {[%emt 0:00:05]} 55. f4 {[%emt 0:00:15]} Bg3 {[%emt 0:00:22]} 56. Ne6 1-0

[Event "7. Arber-Senioren-Cup 2019"]
[Site "Bodenmais"]
[Date "2019.08.02"]
[Round "7.10"]
[White "Glaessl, Matthias"]
[Black "Peglau, Markus"]
[Result "1/2-1/2"]
[ECO "B12"]
[WhiteElo "2148"]
[BlackElo "1849"]
[Annotator "ChessBase"]
[PlyCount "172"]
[EventDate "2019.07.27"]
[EventType "swiss"]
[EventCountry "GER"]
[SourceTitle "playchess.com"]
[Source "ChessBase"]
[SourceQuality "1"]
[TimeControl "60/7800+30:0"]

1. e4 {[%emt 0:00:00]} c6 {[%emt 0:00:00]} 2. d4 {[%emt 0:00:00]} d5 {[%emt 0:00:00]} 3. e5 {[%emt 0:00:00]} Bf5 {[%emt 0:00:00]} 4. Nd2 {[%emt 0:00:00]} e6 {[%emt 0:00:27]} 5. Nb3 {[%emt 0:00:00]} Nd7 {[%emt 0:00:46]} 6. Nf3 {[%emt 0:00:00]} a6 {[%emt 0:08:52]} 7. c3 {[%emt 0:05:24]} c5 {[%emt 0:05:10]} 8. dxc5 {[%emt 0:00:36]} Ne7 {[%emt 0:14:11]} 9. Be3 {[%emt 0:10:42]} Nc6 {[%emt 0:04:19]} 10. Nfd4 {[%emt 0:00:25]} Be4 {[%emt 0:03:08]} 11. f3 {[%emt 0:07:38]} Bg6 {[%emt 0:01:07]} 12. Nxc6 {[%emt 0:01:13]} bxc6 {[%emt 0:00:28]} 13. Bd4 {[%emt 0:00:07]} a5 {[%emt 0:04:37]} 14. h4 {[%emt 0:03:47]} h6 {[%emt 0:01:54]} 15. Bd3 {[%emt 0:02:19]} Bxd3 {[%emt 0:02:15]} 16. Qxd3 {[%emt 0:00:02]} a4 {[%emt 0:02:31]} 17. Nc1 {[%emt 0:00:16]} Bxc5 {[%emt 0:08:46]} 18. Qe3 {[%emt 0:02:46]} Be7 {[%emt 0:07:29]} 19. Qf2 {[%emt 0:09:14]} Qa5 {[%emt 0:08:21]} 20. f4 {[%emt 0:08:47]} c5 {[%emt 0:03:03]} 21. Be3 {[%emt 0:00:02]} a3 {[%emt 0:02:29]} 22. Nb3 {[%emt 0:03:40]} axb2 23. Qxb2 {[%emt 0:00:09]} Qa4 {[%emt 0:06:02]} 24. O-O {[%emt 0:04:11]} O-O {[%emt 0:02:56]} 25. Qf2 {[%emt 0:04:05]} Rfc8 {[%emt 0:05:30]} 26. g3 {[%emt 0:00:48]} Qe4 {[%emt 0:07:46]} 27. Rfd1 {[%emt 0:03:28]} Ra3 {[%emt 0:03:08]} 28. Rac1 {[%emt 0:01:26]} Rca8 {[%emt 0:02:39]} 29. Rc2 {[%emt 0:01:24]} c4 {[%emt 0:01:04]} 30. Nc1 {[%emt 0:00:06]} Rb8 {[%emt 0:04:25]} 31. Re1 {[%emt 0:04:07]} Qg6 {[%emt 0:00:42]} 32. Kh2 {[%emt 0:00:29]} Rb5 {[%emt 0:02:07]} 33. Rb2 {[%emt 0:01:09]} Raa5 {[%emt 0:01:15]} 34. a4 {[%emt 0:07:49]} Rxb2 {[%emt 0:03:14]} 35. Qxb2 {[%emt 0:00:01]} Bc5 {[%emt 0:11:32]} 36. Bxc5 {[%emt 0:08:32]} Nxc5 {[%emt 0:00:02]} 37. Qb4 {[%emt 0:00:20]} Qc2+ {[%emt 0:00:29]} 38. Re2 {[%emt 0:00:19]} Qxa4 {[%emt 0:03:06]} 39. Qb8+ {[%emt 0:00:06]} Kh7 {[%emt 0:00:07]} 40. Qc7 {[%emt 0:00:34]} Nd3 {[%emt 0:02:04]} 41. Ra2 {[%emt 0:01:49]} Qd1 {[%emt 0:02:32]} 42. Qxa5 {[%emt 0:00:06]} Qxc1 {[%emt 0:01:16]} 43. Qa7 {[%emt 0:03:45]} Qxc3 {[%emt 0:02:08]} 44. Qxf7 {[%emt 0:01:25]} Qe1 {[%emt 0:01:40]} 45. h5 {[%emt 0:00:22]} Qe4 {[%emt 0:00:29]} 46. Qxe6 {[%emt 0:01:08]} Ne1 {[%emt 0:02:34]} 47. Qg6+ {[%emt 0:00:42]} Qxg6 48. hxg6+ {[%emt 0:00:02]} Kxg6 {[%emt 0:00:04]} 49. Re2 {[%emt 0:00:03]} Nf3+ {[%emt 0:00:19]} 50. Kg2 {[%emt 0:00:03]} Nd4 {[%emt 0:00:29]} 51. Rd2 {[%emt 0:00:43]} c3 {[%emt 0:00:25]} 52. Rd1 {[%emt 0:00:18]} Nf5 {[%emt 0:01:20]} 53. Kf3 {[%emt 0:00:18]} d4 {[%emt 0:00:16]} 54. g4 {[%emt 0:00:16]} Nh4+ {[%emt 0:02:19]} 55. Ke4 {[%emt 0:00:20]} c2 {[%emt 0:00:39]} 56. Rc1 {[%emt 0:00:13]} h5 {[%emt 0:02:57]} 57. Rxc2 {[%emt 0:00:34]} hxg4 {[%emt 0:00:06]} 58. f5+ {[%emt 0:01:23]} Nxf5 {[%emt 0:00:29]} 59. Rg2 {[%emt 0:00:21]} Kg5 {[%emt 0:00:31]} 60. e6 {[%emt 0:00:59]} Kf6 {[%emt 0:00:43]} 61. Rxg4 {[%emt 2:10:13]} g6 {[%emt 2:10:40]} 62. Rg1 {[%emt 0:00:25]} d3 {[%emt 0:00:29]} 63. Kxd3 {[%emt 0:00:05]} Kxe6 {[%emt 0:00:03]} 64. Rxg6+ {[%emt 0:00:11]} Ke5 {[%emt 0:00:01]} 65. Ra6 {[%emt 0:00:21]} Kd5 {[%emt 0:00:55]} 66. Ra5+ {[%emt 0:00:00]} Ke6 {[%emt 0:00:30]} 67. Ke4 {[%emt 0:00:00]} Nd6+ 68. Kf4 Nc4 {[%emt 0:01:28]} 69. Rh5 {[%emt 0:01:56]} Kd6 {[%emt 0:00:30]} 70. Ke4 {[%emt 0:00:26]} Nb6 {[%emt 0:00:33]} 71. Kd4 {[%emt 0:00:09]} Kc6 {[%emt 0:00:26]} 72. Rg5 {[%emt 0:00:51]} Nd7 {[%emt 0:00:34]} 73. Rg6+ {[%emt 0:00:38]} Kb5 {[%emt 0:00:31]} 74. Rh6 {[%emt 0:04:46]} Nb6 {[%emt 0:00:27]} 75. Rd6 {[%emt 0:01:13]} Nc8 {[%emt 0:00:32]} 76. Rd5+ {[%emt 0:00:33]} Kc6 {[%emt 0:00:33]} 77. Rc5+ {[%emt 0:00:17]} Kd7 78. Ke5 {[%emt 0:00:43]} Ne7 {[%emt 0:00:49]} 79. Rc1 {[%emt 0:01:14]} Nc6+ {[%emt 0:00:20]} 80. Kf6 {[%emt 0:00:04]} Kd6 {[%emt 0:00:45]} 81. Rd1+ {[%emt 0:00:00]} Kc5 {[%emt 0:00:23]} 82. Kf5 {[%emt 0:00:12]} Nd4+ {[%emt 0:00:22]} 83. Ke4 {[%emt 0:00:08]} Nc6 {[%emt 0:00:34]} 84. Rd5+ {[%emt 0:01:33]} Kc4 {[%emt 0:00:35]} 85. Rh5 {[%emt 0:00:30]} Nb4 {[%emt 0:00:31]} 86. Rh8 {[%emt 0:00:52]} Kc5 {[%emt 0:00:37]} 1/2-1/2

[Event "7. Arber-Senioren-Cup 2019"]
[Site "Bodenmais"]
[Date "2019.08.02"]
[Round "7.11"]
[White "Kuempers, Ulrich"]
[Black "Halli, Gerhard"]
[Result "1-0"]
[ECO "D55"]
[WhiteElo "2030"]
[BlackElo "1955"]
[Annotator "NA"]
[PlyCount "52"]
[EventDate "2019.07.27"]
[EventType "swiss"]
[EventCountry "GER"]
[SourceTitle "playchess.com"]
[Source "ChessBase"]
[SourceQuality "1"]
[TimeControl "60/7800+30:0"]

1. d4 {[%emt 0:00:00]} d5 {[%emt 0:01:52]} 2. c4 {[%emt 0:00:00]} e6 {[%emt 0:01:35]} 3. Nc3 {[%emt 0:00:00]} Nf6 {[%emt 0:01:10]} 4. Bg5 {[%emt 0:00:11]} Be7 {[%emt 0:01:12]} 5. e3 {[%emt 0:00:08]} O-O {[%emt 0:01:27]} 6. Nf3 {[%emt 0:00:09]} b6 {[%emt 0:02:35]} 7. cxd5 {[%emt 0:00:45]} exd5 {[%emt 0:00:10]} 8. Bd3 {[%emt 0:01:50]} Bb7 {[%emt 0:00:37]} 9. Qc2 {[%emt 0:04:15]} Nbd7 {[%emt 0:08:29]} 10. O-O-O {[%emt 0:04:19]} c5 {[%emt 0:00:34]} 11. Kb1 {[%emt 0:01:07]} c4 {[%emt 0:03:35]} 12. Bf5 {[%emt 0:01:28]} g6 {[%emt 0:00:40]} 13. Bh3 {[%emt 0:00:41]} a6 {[%emt 0:00:58]} 14. Ne5 {[%emt 0:03:39]} b5 {[%emt 0:01:45]} 15. f4 {[%emt 0:11:36]} Nb6 {[%emt 0:02:44]} 16. f5 {[%emt 0:05:40]} Ne4 {[%emt 0:00:41]} 17. Bh6 {[%emt 0:14:16]} Re8 {[%emt 0:03:25]} 18. fxg6 {[%emt 0:02:41]} hxg6 {[%emt 0:01:02]} 19. Rhf1 {[%emt 0:05:01]} Bf6 {[%emt 0:00:52]} 20. Nxe4 {[%emt 0:04:17]} dxe4 21. Qf2 {[%emt 0:06:13]} Nd5 {[%emt 0:03:43]} 22. Nd7 {[%emt 0:02:13]} Kh7 {[%emt 0:00:39]} 23. Nxf6+ {[%emt 0:00:27]} Nxf6 {[%emt 0:00:03]} 24. Bg5 Nd5 25. Bh6 Qf6 26. Qxf6 Nxf6 1-0

[Event "7. Arber-Senioren-Cup 2019"]
[Site "Bodenmais"]
[Date "2019.08.02"]
[Round "7.12"]
[White "Bock, Ortwin"]
[Black "Benischek, Wolfgang"]
[Result "1/2-1/2"]
[ECO "B08"]
[WhiteElo "1938"]
[BlackElo "2022"]
[Annotator "NA"]
[PlyCount "38"]
[EventDate "2019.07.27"]
[EventType "swiss"]
[EventCountry "GER"]
[SourceTitle "playchess.com"]
[Source "ChessBase"]
[SourceQuality "1"]
[TimeControl "60/7800+30:0"]

1. d4 {[%emt 0:00:00]} Nf6 {[%emt 0:00:00]} 2. Nc3 {[%emt 0:00:00]} d6 {[%emt 0:00:13]} 3. e4 {[%emt 0:01:04]} g6 {[%emt 0:00:10]} 4. Nf3 {[%emt 0:00:32]} Bg7 {[%emt 0:00:09]} 5. Be2 {[%emt 0:03:24]} O-O {[%emt 0:00:20]} 6. O-O {[%emt 0:02:09]} b6 {[%emt 0:09:02]} 7. Re1 {[%emt 0:07:31]} c5 {[%emt 0:02:44]} 8. dxc5 {[%emt 0:09:44]} bxc5 {[%emt 0:00:18]} 9. e5 {[%emt 0:00:25]} Ne8 {[%emt 0:01:06]} 10. Bf4 {[%emt 0:05:21]} Bb7 11. exd6 {[%emt 0:04:04]} exd6 {[%emt 0:09:24]} 12. Bc4 {[%emt 0:03:26]} Bxc3 {[%emt 0:15:49]} 13. bxc3 {[%emt 0:00:11]} Nc6 {[%emt 0:04:42]} 14. Rb1 {[%emt 0:08:58]} Qd7 {[%emt 0:07:22]} 15. Bh6 {[%emt 0:07:40]} Ng7 {[%emt 0:00:15]} 16. Bf4 {[%emt 0:09:20]} Rad8 {[%emt 0:01:36]} 17. Bg5 {[%emt 0:04:06]} Rc8 {[%emt 0:00:17]} 18. Bf4 {[%emt 0:01:01]} Rcd8 {[%emt 0:05:07]} 19. Bg5 {[%emt 0:00:35]} Rc8 {[%emt 0:00:15]} 1/2-1/2